{"text_format":"1","workbook":"xlsx","n_sheets":2,"sheets":["Отчет","цены"],"not_rendered":{"charts":0,"images":1,"macros":1,"external_links":0,"defined_names":1,"comments":2,"pivot_tables":0},"unopened":[],"bounds":{"document_bytes":16777216,"sheet_cells":100000,"rows_first":2000,"rows_last":500,"rows_between":2000,"halvings":0,"cell_chars":16384,"cell_head_chars":4096},"cells_cut":0,"cells_raw":0,"read":"whole","date_system":"1900"}

{"sheet":"Отчет","index":0,"n_rows":21,"n_cols":9,"rows_kept":21,"cut":false,"hidden":false,"merged":[]}
["Ф.И.О.","Жуков А. А.","З/п"]
["дата создания:",null,{"$f":"(цены!C453*0.06)+(цены!I453*0.05)","v":26052.3}]
["период",null,null,null,null,null,null,null,9]
["с:","2011-11-01"]
["по:","2011-11-30"]
["Торговая точка","Максидом"]
[]
[]
[]
["Ашан"]
["Окей"]
["Домовой"]
["Медиамаркет"]
["Касторама"]
["Перекресток"]
["Максидом"]
["Оби"]
["Пятерочка"]
["Метро"]
["Лента"]
["Карусель"]

{"sheet":"цены","index":1,"n_rows":461,"n_cols":12,"rows_kept":461,"cut":false,"hidden":false,"merged":[]}
[]
[]
[]
[]
[null,null,"Оборот","Розничная цена","Акционная цена","Тип акции","Доп. выкладка","Продажи за период в шт.","Личные продажи (бонусная часть)","Отгрузки за период","Премиальные условия %","Остатки"]
[]
["Ваш магазин","Наименования","Оборот","Розничная цена","Акционная цена"]
[null,"(01) В300",{"$f":"SUM(C9:C13)","v":14000}]
["Максидом, Окей, Медиамаркет, Домовой","Водоочиститель многоступенчатый Аквафор В300 модель Аквафор В300 , арт.115",{"$f":"H9*D9","v":1800},300,229,null,null,6]
["Домовой","Водоочиститель многоступенчатый Аквафор В300 модель Аквафор В300, усиленный бактерицидной добавкой , арт.150",5000,500,null,null,null,10]
["Домовой","Водоочиститель многоступенчатый Аквафор В300 модель Аквафор Универсал , арт.172",7200,900,null,null,null,8]
["Максидом, Окей, Медиамаркет","Модуль сменный фильтрующий Аквафор В300 , арт.114",0]
["Ашан, Лента, Домовой","Модуль сменный фильтрующий Аквафор В300, усиленный бактерицидной добавкой , арт.156",0]
[null,"(01) Топаз",0]
["Максидом, Домовой","Водоочиститель многоступенчатый Аквафор В300 модель Аквафор Топаз , арт.1300",0]
["Максидом, Домовой","Модуль сменный фильтрующий Аквафор Топаз , арт.1301",0]
[null,"(02) Кувшины",{"$f":"SUM(C18:C49)","v":0}]
["Метро","Кувшин Агат",{"$f":"H18*D18","v":0}]
[null,"Кувшин \"Арт\"",0]
["Лента","Водоочиститель Кувшин модель Аквафор Арт (бел) , арт.а795",0]
[null,"Кувшин \"Гарри\"",0]
["Максидом, Лента, Медиамаркет, Домовой","Водоочиститель Кувшин модель Аквафор Гарри (голубой) , арт.а2642",0]
[null,"Кувшин \"Гратис\"",0]
[null,"Водоочиститель Кувшин модель Аквафор TIP",0]
["Лента","Водоочиститель Кувшин модель Аквафор Триумф\n (синий кобальт) , арт.а2852",0]
["Максидом, Ашан, Домовой, Касторама","Водоочиститель Кувшин модель Аквафор Гратис (белый) , арт.а2174",0]
[null,"Кувшин \"Кантри\"",0]
["Карусель, Перекресток(Москва)","Водоочиститель Кувшин модель Аквафор Кантри (зеленый) , арт.а2857",0]
["Окей","Кувшин \"Лайн\"",0]
["Максидом, Медиамаркет, Карусель, Перекресток(Москва), Домовой, ОБИ","Водоочиститель Кувшин модель Аквафор Лайн (бел) , арт.а2474",0]
[null,"Кувшин \"Люкс\"",0]
["Касторама","Водоочиститель Кувшин модель Аквафор Люкс (с индикатором ресурса)(рубиново-красный) , арт.а2441",0]
[null,"Кувшин \"Сити\"",0]
[null,"Водоочиститель Кувшин модель Аквафор Сити (рубиново-красный) , арт.а2483",0]
[null,"Кувшин \"Норд\"",0]
["Лента","Водоочиститель Кувшин модель Аквафор Норд (рубиново-красный) , арт.а2346",0]
[null,null,0]
["Окей, Ашан, Домовой, Метро, Касторама","Водоочиститель Кувшин модель Аквафор Премиум , арт.а2253",0]
[null,"Кувшин \"Престиж\"",0]
["Окей, Медиамаркет, Домовой, ОБИ, Метро","Водоочиститель Кувшин модель Аквафор Престиж (рубиново-красный) , арт.а2338",0]
[null,"Кувшин \"Идеал\"",0]
["Окей","Водоочиститель Кувшин модель Аквафор Идеал (рубиново-красный) , арт.и963",0]
[null,"Кувшин \"Стандарт\"",0]
["Окей, Пятерочка, Карусель, Перекресток(Москва), Касторама","Водоочиститель Кувшин модель Аквафор Стандарт , арт.а2634",0]
["Ашан","Кувшин  Волна",0]
[null,"Водоочиститель Кувшин модель Аквафор АРО +3 смен.модуля",0]
["Метро","Водоочиститель Кувшин модель Аквафор АРО  МЕТРО",0]
[null,"Кувшин \"Ультра\"",0]
["Максидом, Окей, Медиамаркет, Домовой, Метро, Касторама","Водоочиститель Кувшин модель Аквафор Ультра, арт.а2635",0]
[null,"(03) См. модули для кувшинов",{"$f":"SUM(C51:C72)","v":72750}]
[null,"Модуль сменный фильтрующий Аквафор В100-25 (Максфор) ",{"$f":"H51*D51","v":0},null,null,null,null,15]
["Метро","Модуль сменный фильтрующий Аквафор В100-25 (Максфор)(комплект)(2 шт.) ",0]
[null,"Модули В100-1,3,4",0]
["Максидом, Домовой","Модуль сменный фильтрующий Аквафор В100-1 , арт.280",12000,120,null,null,null,100]
["Окей, Домовой","Модуль сменный фильтрующий Аквафор В100-3 , арт.293",0]
["Домовой","Модуль сменный фильтрующий Аквафор В100-4 , арт.294",0]
[null,"Модули В100-15",0]
["Максидом, Окей, Медиамаркет, Пятерочка, Карусель, Домовой, ОБИ, Касторама","Модуль сменный фильтрующий Аквафор В100-15 (Стандарт) , арт.а451",0]
[null,"Модуль сменный фильтрующий Аквафор В100-15 (Стандарт) (комплект)(3 шт) , арт.а2396",22000,110,null,null,null,200]
["Ашан","    Модуль Волна  (100-15)",0]
["Метро","Модуль сменный АРО 5+1            МЕТРО",0]
["Метро","Модуль сменный АРО (3 штуки)      МЕТРО",0]
[null,"Модули В100-5,6,7",0]
["Ашан","В 100-5 Ашан, ЛЕРУА",0]
[null,"Модуль сменный TIP   ( 100-5)",0]
["Максидом, Лента, Медиамаркет, Карусель, Перекресток(Москва), Домовой, Касторама","Модуль сменный фильтрующий Аквафор В100-5, усиленный бактерицидной добавкой , арт.1505",0]
["Окей","Модуль сменный фильтрующий Аквафор В100-5, усиленный бактерицидной добавкой (комплект) (3 шт) , арт.а1312",38750,155,null,null,null,250]
["Максидом, Окей, Лента, Метро, Касторама","Модуль сменный фильтрующий Аквафор В100-5, усиленный бактерицидной добавкой (комплект)(2 шт) , арт.а262",0]
["Максидом, Медиамаркет, Карусель, Перекресток(Москва), Домовой, Касторама","Модуль сменный фильтрующий Аквафор В100-6 , арт.а252",0]
[null,"Модуль сменный фильтрующий Аквафор В100-6 (комплект)(2 шт) , арт.а333",0]
["Максидом, Окей, Лента, Домовой","Модуль сменный фильтрующий Аквафор В100-7 , арт.а2295",0]
["Окей, Домовой","Модуль сменный фильтрующий Аквафор В100-8 , арт.а2409",0]
[null,"(04) Модерн",0]
["Максидом, Окей, Лента, Карусель, Домовой, Метро, Касторама","Водоочиститель многоступенчатый Аквафор Модерн (исполнение 1) , арт.246",0]
["Максидом, Окей","Водоочиститель многоступенчатый Аквафор Модерн (исполнение 2) , арт.469",0]
["Ашан","Водоочиститель многоступенчатый Аквафор Модерн (исполнение 4) , арт.а1327",0]
[null,null,0]
["Максидом, Окей, Лента, Карусель, Домовой, ОБИ, Метро, Касторама","Модуль сменный фильтрующий Аквафор В200 (комплект) , арт.223",0]
["Ашан, ОБИ","Модуль сменный фильтрующий Аквафор B200 (комплект умягчающий) , арт.а259",0]
[null,"(08) Корпусные системы",{"$f":"SUM(C81:C103)","v":0}]
[null,"В150 Фаворит",{"$f":"H81*D81","v":0}]
["Максидом, Медиамаркет, Домовой, ОБИ, Метро","Водоочиститель многоступенчатый Аквафор В150 модель Аквафор В150 Фаворит (исполнение 5) , арт.а592",0]
[null,null,0]
["Максидом, Домовой","Блок коллекторов Аквафор Кристалл Квадро , арт.а1784",0]
[null,"Водоочиститель Аквафор модель Аквафор Кристалл  В (исполнение 3) , арт.а1281",0]
["Медиамаркет, Касторама","Водоочиститель   Аквафор модель Аквафор Кристалл Н (исполнение 2) , арт.а860",0]
["Максидом, Медиамаркет, Домовой, ОБИ, Метро, Касторама","Водоочиститель  Аквафор модель Аквафор Кристалл , арт.а367",0]
[null,"Водоочиститель Аквафор модель Аквафор Кристалл (кран с индикатором ресурса)",0]
[null,"Водоочиститель  Аквафор модель Аквафор Кристалл А (ЛеРУА)",0]
[null,"Водоочиститель  Аквафор модель Аквафор Кристалл А (без крана)",0]
[null,"Водоочиститель Аквафор модель Аквафор Кристалл НВ (исполнение 4) , арт.а1648",0]
[null,null,0]
["Максидом, Домовой, ОБИ","Водоочиститель Аквафор модель Аквафор Кристалл Соло , арт.а1054",0]
[null,null,0]
[null,null,0]
[null,"Корпус водоочистителя в сборе Аквафор Трио , арт.а963",0]
[null,null,0]
["Карусель, Домовой, ОБИ","Водоочиститель Аквафор модель Аквафор Трио умягчающий , арт.а2843",0]
[null,"Водоочиститель Аквафор модель Аквафор Трио Норма умягчающий , арт.а2840",0]
[null,null,0]
["Максидом, Карусель, Домовой, ОБИ, Касторама","Водоочиститель Аквафор модель Аквафор Трио , арт.а2819",0]
["Максидом","Водоочиститель Аквафор Трио Норма ( с краном исп.3)",0]
["Окей, Лента, Домовой, Касторама","Водоочиститель Аквафор Трио Норма , арт.а2822",0]
[]
[]
["Максидом, Окей, Медиамаркет, Домовой, ОБИ, Метро","Комплект модулей сменных фильтрующих К1-03-02-07 , арт.а380",{"$f":"H106*D106","v":0}]
["Максидом, Домовой","Корпус модуля К1-Р , арт.а1616",0]
["Максидом","Модуль сменный фильтрующий К1-07В , арт.а1486",0]
["Максидом, Медиамаркет, Домовой, ОБИ, Касторама","Модуль сменный фильтрующий К1-02 , арт.а950",0]
["Максидом, Медиамаркет, Домовой, ОБИ, Касторама","Модуль сменный фильтрующий К1-03 , арт.а951",0]
["Максидом, Медиамаркет, Домовой, ОБИ, Касторама","Модуль сменный фильтрующий К1-04 , арт.а863",0]
["Максидом, Медиамаркет, Домовой, ОБИ, Касторама","Модуль сменный фильтрующий К1-07 , арт.а952",0]
["Домовой","Элемент фильтрующий ЭФ Г (55/265 – 5 мкм для холодной воды) , арт.м10",0]
["Максидом","Элемент фильтрующий ЭФ Г (55/265 – 20 мкм для холодной воды) , арт.а1590",0]
[null,"См. модули Соло, Дуэт, Трио, Фаворит",0]
["Максидом, Домовой","Комплект модулей сменных фильтрующих В510-03-02 , арт.561",0]
["Максидом, Карусель, Домовой, ОБИ, Метро, Касторама","Комплект модулей сменных фильтрующих В510-03-02-07 , арт.565",0]
["Карусель, Домовой, ОБИ, Касторама","Комплект модулей сменных фильтрующих В510-03-04-07 , арт.а790",0]
["Максидом","Комплект модулей сменных фильтрующих В510-04-02 , арт.а711",0]
["Максидом, Окей, Домовой, ОБИ, Метро","Модуль сменный фильтрующий Аквафор В150 , арт.915",0]
["Окей, Домовой, ОБИ","Модуль сменный фильтрующий В510-02 , арт.459",0]
["Домовой, ОБИ","Модуль сменный фильтрующий В510-03 , арт.460",0]
["Домовой, ОБИ","Модуль сменный фильтрующий В510-04 , арт.а669",0]
["Максидом, Окей, Домовой, ОБИ","Модуль сменный фильтрующий В510-07 , арт.464",0]
[null,"ПРЕДФИЛЬТРЫ",{"$f":"SUM(C126:C129)","v":0}]
["Максидом, Домовой","Корпус предфильтра Аквафор для холодной воды , арт.а2775",{"$f":"H126*D126","v":0}]
[null,"Корпус водоочистителя Аквабосс-1-01 для холодной воды , арт.1014",{"$f":"H127*D127","v":0}]
["Максидом, Домовой, Касторама","Корпус водоочистителя Аквабосс-1-02 для горячей воды , арт.1015",{"$f":"H128*D128","v":0}]
["Максидом, Домовой, Касторама","Корпус предфильтра Аквафор для холодной воды (прозрачный) , арт.а2776",{"$f":"H129*D129","v":0}]
[]
[]
["Касторама","Элемент фильтрующий ЭФ Г (63/250 – 10 мкм для горячей воды) , арт.м1",{"$f":"H132*D132","v":0}]
[null,"Элемент фильтрующий ЭФ Г (63/250 – 20 мкм для горячей воды) , арт.м2",0]
["Максидом, Домовой, ОБИ","Элемент фильтрующий ЭФ Г (63/250 – 20 мкм для холодной воды) , арт.м3",0]
["Максидом, Домовой, ОБИ","Элемент фильтрующий ЭФ Г (63/250 – 5 мкм для горячей воды) , арт.м4",0]
["Максидом, Окей, Медиамаркет, Домовой, ОБИ, Касторама","Элемент фильтрующий ЭФ Г (63/250 – 5 мкм для холодной воды) , арт.м5",0]
[null,"(12) Краны",0]
["Максидом, Домовой","Кран с керамической парой , арт.а288",0]
["Максидом","Кран с керамической парой (исп.3) , арт.а30",0]
[null,"(13) Втулки"]
["Максидом, Домовой, ОБИ","Втулка переходная для подключения в/о \"Аквафор Топаз\", \"Аквафор Модерн\" (исп.2) к гладкому крану , арт.1598",{"$f":"H141*D141","v":0}]
["ОБИ","Втулка переходная ВП3 , арт.485",0]
["ОБИ","Втулка переходная ВП4 , арт.487",0]
["Домовой","Втулка переходная ВП5 , арт.489",0]
["Домовой, ОБИ","Втулка переходная для подключения водоочистителей Аквафор к гладкому крану (без резьбы) , арт.490",0]
["Максидом","Переключатель П21 , арт.1099",0]
["Максидом","Переходник для регенерации модуля , арт.а849",0]
[null,null,0]
["Максидом, Домовой, ОБИ, Касторама","Корпус водоочистителя Аквафор Викинг , арт.а1041",0]
["Максидом, Домовой","Корпус водоочистителя Аквафор Викинг Миди , арт.а1125",0]
["Максидом, Домовой","Корпус водоочистителя Аквафор Викинг Мини , арт.а1129",0]
[null,null,0]
["Максидом, Касторама","Корпус водоочистителя ВВ 10” (1” NPT) с комплектом деталей , арт.б1",0]
["Максидом, Касторама","Корпус водоочистителя ВВ 20” (1” NPT) с комплектом деталей , арт.б2",0]
[null,null,0]
[null,null,0]
[null,"Водоочиститель \"Аквафор-ОСМО\" (100) исп.4",0]
["ОБИ","Водоочиститель Аквафор-ОСМО исполнение Аквафор-ОСМО-100-5-А , арт.б29",0]
[null,"Водоочиститель Аквафор-ОСМО исполнение Аквафор-ОСМО-100-6-А , арт.б30",0]
[null,"Водоочиститель Аквафор-ОСМО-К исполнение Аквафор-ОСМО-К-100-4-А , арт.а1508",0]
[null,"Водоочиститель Аквафор-ОСМО-К исполнение Аквафор-ОСМО-К-100-5-А , арт.а1499",0]
[null,null,0]
[null,"Водоочиститель \"Аквафор-ОСМО 100 ПН\" исп.4",0]
[null,"Водоочиститель Аквафор-ОСМО исполнение Аквафор-ОСМО-100-5-ПН-А , арт.б32",0]
["ОБИ","Водоочиститель Аквафор-ОСМО исполнение Аквафор-ОСМО-100-6-ПН-А , арт.б33",0]
[]
["Касторама","Водоочиститель Аквафор-ОСМО исполнение Аквафор-ОСМО-050-5-А , арт.б26",{"$f":"H167*D167","v":0}]
[null,"Водоочиститель Аквафор-ОСМО исполнение Аквафор-ОСМО-050-6-А , арт.б27",{"$f":"H168*D168","v":0}]
[null,"Водоочиститель Аквафор-ОСМО-М исполнение Аквафор-ОСМО-М-050-4-Б , арт.и267",{"$f":"H169*D169","v":0}]
["Касторама","Водоочиститель Аквафор-ОСМО-К исполнение  Аквафор-ОСМО-К-050-4-А , арт.а1505",{"$f":"H170*D170","v":0}]
["Медиамаркет","Водоочиститель Аквафор-ОСМО-К исполнение Аквафор-ОСМО-К-050-5-А , арт.а1511",{"$f":"H171*D171","v":0}]
[]
[]
[null,"Фильтр диспенсер аквафор Кристалл",{"$f":"H174*D174","v":0}]
[null,"Комплект для повышения давления , арт.б34",0]
["ОБИ","Сменный элемент TFC-100 RO Ultra Tec USA , арт.а298",0]
["Максидом","Модуль сменный мембранный Аквафор-ОСМО-100-К , арт.а1487",0]
["ОБИ","Сменный элемент TFC-50 RO Ultra Tec USA",0]
["Касторама","Элемент сменный мембранного типа для систем очистки воды методом обратного осмоса модели ULP 1812-50 , арт.а1798",0]
["Медиамаркет, Касторама","Модуль сменный мембранный Аквафор-ОСМО-50-К , арт.а2429",0]
[null,"Сменные BB ",{"$f":"SUM(C182:C183)","v":0}]
["Максидом, Касторама","Модуль сменный фильтрующий В 510-12 , арт.1577",{"$f":"H182*D182","v":0}]
["Максидом, Касторама","Модуль сменный фильтрующий В 520-12 , арт.1576",{"$f":"H183*D183","v":0}]
[null,"Модули Викинг",{"$f":"SUM(C185:C192)","v":0}]
["Максидом, Домовой","Модуль сменный фильтрующий АКВАФОР В150 ПЛЮС , арт.1727",{"$f":"H185*D185","v":0}]
["Максидом, Домовой, ОБИ, Касторама","Модуль сменный фильтрующий В520-13 , арт.1774",0]
["Максидом, Домовой, ОБИ, Касторама","Модуль сменный фильтрующий В520-14 , арт.а206",0]
["Максидом, Домовой","Модуль сменный фильтрующий Аквафор В150 Миди , арт.а1308",0]
["Максидом, Д"," ",0]
["Максидом, Домовой","Модуль сменный фильтрующий В505-14 , арт.а1238",0]
["Максидом, Домовой","Модуль сменный фильтрующий В515-13 , арт.а1239",0]
["Максидом, Домовой","Модуль сменный фильтрующий В515-14 , арт.а1240",0]
[null,null,0]
[null,null,0]
["Касторама","Элемент фильтрующий ЭФ Г (112/250 – 10 мкм для холодной воды) , арт.м6",0]
[null,"Элемент фильтрующий ЭФ Г (112/250 – 10 мкм для горячей воды)",0]
["Максидом","Элемент фильтрующий ЭФ Г (112/250 – 20 мкм для холодной воды) , арт.м7",0]
["Максидом","Элемент фильтрующий ЭФ Г (112/250 – 5 мкм для холодной воды) , арт.м8",0]
["Касторама","Элемент фильтрующий ЭФ Г (112/508 – 10 мкм для холодной воды) , арт.м9",0]
[null,"Элемент фильтрующий ЭФ Г (112/508 – 10 мкм для горячей воды)",0]
["Максидом","Элемент фильтрующий ЭФ Г (112/508 – 20 мкм для холодной воды) , арт.м10",0]
["Максидом","Элемент фильтрующий ЭФ Г (112/508 – 5 мкм для холодной воды) , арт.м11",0]
[null,"См. модули для корпусов Викинг",0]
["Максидом","Модуль сменный фильтрующий В520-ПХ20 , арт.а1756",0]
["Максидом","Модуль сменный фильтрующий В520-ПХ5 , арт.а1752",0]
["ОБИ","Индикатор ресурса Аквафор , арт.1738",0]
[null,"Кран регулировочный ГП",0]
[null,"Кран с керамической парой",0]
[null,"Трубка РЕ 1/4 Фирмы JG",0]
[null,"WB 900",0]
["Максидом","WB 700",0]
["Максидом","Фильтр Honeywell FF06-1 AA  х/в 100мкм",0]
["Максидом","Фильтр Honeywell FF06-1/2 FAA  х/в 100мкм",0]
["Максидом","Фильтр Honeywell FF06-1/2 FAAМ  г/в 100мкм",0]
["Максидом","Фильтр Honeywell FF06-3/4 AA  х/в 100мкм",0]
["Максидом","Фильтр Honeywell FF06-3/4 AAМ  г/в 100мкм",0]
["Максидом","Сетка запасная Honeywell AS-1/2A ( для FF-06-1/2 )",0]
["Максидом","Сетка запасная Honeywell AS-3/4A ( для FF-06-3/4 )",0]
["Максидом","Фильтр Honeywell F76S-3/4 FAA  х/в 100мкм",0]
[null,"Фильтр Honeywell F76S-3/4 FAAM  u/в 100мкм",0]
["ОБИ","постфильтр угольный 10''x2",0]
[null,"Таблетированная соль",0]
[null,"ОБОРОТ АКВАФОР",{"$f":"SUM(C203+C194+C184+C181+C173+C166+C156+C152+C148+C140+C137+C131+C125+C115+C105+C80+C73+C50+C8+C17)","v":86750},{"$f":"SUM(D9:D222)","v":2085}]
[null,null,{"$f":"H224*D224","v":0}]
[null,"Гейзер",{"$f":"H225*D225","v":0}]
[null,"Настольные фильтры",{"$f":"SUM(C227:C235)","v":26500},{"$f":"SUM(D227:D235)","v":7000}]
["Максидом","Гейзер 1У евро",{"$f":"H227*D227","v":20000},2000,null,null,null,10]
["Максидом","Гейзер 1УК евро (с диверт)",2000,1000,null,null,null,2]
["Максидом","Гейзер 1С   (ж\\в)",4500,1500,null,null,null,3]
["Максидом, ОБИ","Гейзер 1УЖ евро",0,2500]
["ОБИ","Гейзер 1 УЖ",0,null,null,null,null,9]
["Максидом","Устр-во для крепления (для наст фильтр. и насадок)",0,null,null,null,null,3]
["Максидом, ОБИ","Устр-во для крепления (для наст фильтр. и насадок)",0]
["ОБИ","Дивертор нижний (для подк. к импортн кранам)",0,null,null,null,null,1]
["Максидом","Дивертор верхний (для подк. к импортн кранам)",0]
[null,"Кувшины",{"$f":"SUM(C237:C241)","v":30360},{"$f":"SUM(D237:D241)","v":526}]
[null,"гейзер альтаир=грифон",{"$f":"H237*D237","v":0}]
["Максидом, Окей, ОБИ","Гейзер Грифон м\\в",{"$f":"H238*D238","v":16200},300,null,null,null,54]
["Максидом","Гейзер Грифон ж\\в",{"$f":"H239*D239","v":9000},200,null,null,null,45]
["Максидом, Окей","Гейзер Аквариус",{"$f":"H240*D240","v":0},11]
["ОБИ","Гейзер Амиго",{"$f":"H241*D241","v":5160},15,null,null,null,344]
[null,"Смен.картриджи к кувшинам",{"$f":"SUM(C243:C248)","v":0},{"$f":"SUM(D243:D248)","v":0},null,null,null,23]
["Максидом, Окей, ОБИ","Картридж Гейз-Гриф. Для м\\в и железист воды 500",{"$f":"H243*D243","v":0}]
["Максидом, Окей, ОБИ","Картридж Гейз-Гриф. для железистой воды 350",0]
["Максидом, Окей, ОБИ","Картридж Гейз-Гриф. Для ж\\в  400",0]
["Максидом, Окей, ОБИ","Модуль фильтр. Для кувшинов 250 ,бакт",0]
[null,"картридж Альтаир 300",0]
[null,"картридж Альтаир 200",0]
[null,"Корп.системы",{"$f":"SUM(C250:C270)","v":0},{"$f":"I249*E249","v":0}]
["ОБИ","Гейзер 3ИВЖ Элита",{"$f":"H250*D250","v":0}]
["Окей","Гейзер 3ИВ Элита",0]
[null,"Гейзер 3ИЖ ",0]
["Максидом, ОБИ","Гейзер 3ИЖ Элита (ММВ)",0]
["Максидом","Гейзер 3ИБС Элита (оч.ж\\в)",0]
[null,"Гейзер 3И Элита иней",0]
["Максидом","Гейзер 3И Элита(ММВ)углеродн.волокно-прозрачн.",0]
["Максидом, Окей, ОБИ","Гейзер 3ИВЖ Люкс (Карбон-блок)",0]
[null,"Гейзер 3ИВ (С) Люкс сверхжест",0]
["Максидом, Окей, ОБИ","Гейзер 3ИВС Люкс(карбон)",0]
["Максидом","Гейзер БИО",0]
["Максидом","Гейзер 3ИВС",0]
["Максидом, Окей","Гейзер 3ИВ Люкс",{"$f":"H262*D262","v":0}]
["Максидом, ОБИ","Гейзер 3К Люкс(для  желез-ой воды)карбон",0]
[null,"Гейзер 3ИВК    Люкс  (2 карбон блок",0]
[null,"Гейзер 3И (полипроп, арагон, СВС)-прозрачн,Россия",0]
[null,"Гейзер 3АК",0]
["Максидом","Гейзер 2ИВЖ Люкс",0]
["Максидом","Гейзер 2ИВ Люкс  -арагон,СВС",0]
["Максидом","Гейзер 2И Элита (углеродное волокно) прозрачн.",0]
[null,"Гейзер 2ИВ  ",0]
[null,"Сменные картриджи к системам",{"$f":"SUM(C272:C281)","v":0},{"$f":"SUM(D272:D281)","v":0}]
["Максидом","Арагон 2 (ж\\в с увелич. Ресурс по. Солям жестк)",{"$f":"H272*D272","v":0}]
["Максидом, ОБИ","Арагон Ж",0]
["Максидом","Картридж  Арагон М  20-30л/м и 9-11 л/м",0]
["Максидом, Окей","Картридж ионообменный Арагон-2               6-15л/м",0]
["Максидом, ОБИ","Арагон ЕЖ (для жестк питьев)- евро",0]
["Максидом"," Арагон ЕМ 9-11л/мин  - евро",0]
["Максидом, Окей, ОБИ","Картридж ММВ (углеродное волокно)",0]
["Максидом, Окей, ОБИ","Картридж СВС (прессов.кокос.уголь)-карбон-блок",0]
["Окей","Комплект №3 картриджей  к стацион. (",0]
["Максидом, Окей, ОБИ","Комплект картриджей  3И Элита",0]
[null,"Модули",{"$f":"SUM(C283:C289)","v":0},{"$f":"SUM(D283:D289)","v":0}]
["Максидом","Картридж  БС (умягч.) -ионообм.смола",{"$f":"H283*D283","v":0}]
["Максидом","Картридж  БФ (удал-ние жесткость)",0]
["Максидом","Картридж  БА (удал.Fe) дамфер",0]
[null,"Картридж для х\\в от механ.примесей",0]
[null,"Картридж для х\\в от механ.примесей",0]
[null,"Картридж для х\\в от раствор. Fe",0]
[null,"Картридж для г.в и х.в мех.примеси",0]
[null,"ВВ",{"$f":"SUM(B291:B299)","v":0},{"$f":"SUM(C291:C299)","v":0}]
[null,"Гейзер Тайфун с картридж Арагон =Викинг",{"$f":"H291*D291","v":0}]
["Максидом","Корпус ВК Double-Oring 10\" BB",0]
["Максидом","Корпус Double-Oring 20\" BB",0]
["Максидом","Гейзер Джамбо 10  ВВ  синий пл.",0]
["Максидом","Гейзер Тайфун толстый 20  нерж.сталь",0]
["Максидом","Гейзер Тайфун толстый 10  нерж.сталь",0]
["Максидом","Гейзер Джамбо м 20 вв нержав.сталь",0]
[null,"ВВ10 Гейзер",0]
[null,"ВВ 20 Гейзер",0]
[null,"Сменные модули",{"$f":"SUM(C301:C313)","v":0},{"$f":"SUM(D301:D313)","v":0}]
["Максидом","Картридж СВС (Карбон-блок)  10-20 ВВ",{"$f":"H301*D301","v":0}]
["Максидом","Картридж СВС (Карбон-блок)  10-10 ВВ",0]
["Максидом","Картридж BB10 Fe",0]
["Максидом","Картридж /PPY  5-10 ВВ  5 мкр. (мех.очистка)",0]
[null,"Картридж /PPY  5-20 ВВ  5 мкр. (мех.очистка)",0]
["Максидом","Картридж /ЭФМ-ВВ/ г.в.  5- 10 мкр.",0]
["Максидом","Картридж /ЭФМ-ВВ/ г.в. От 5 до 1 мкр.",0]
["Максидом","Картридж /ЭФМ-ВВ 10/ х.в.  5- 1 мкр.",0]
["Максидом","Картридж /ЭФМ-ВВ 10/ х.в.  5- 10 мкр.",0]
["Максидом","Картридж /ЭФМ-ВВ20/ х.в.  20- 10 мкр.",0]
["Максидом","Картридж ЭФМ-Г 10/5      20 ВВ",0]
[null,"Модуль Арагон 3 10ВВ для Тайфуна  до 30 тыс.литр",0]
[null,"Обезжелез для В.В. к  Тайфун",0]
[null,"Предфильтры",{"$f":"SUM(C315:C323)","v":0},{"$f":"SUM(D315:D323)","v":0}]
[null,"Корпус для фильтра Гейзер прозрачн 10д 1/2",{"$f":"H315*D315","v":0}]
[null,"Корпус для фильтра Гейзер прозрачн  1/2 Россия",0]
[null,"Корпус для фильтра Гейзер прозрачн  3/4  россия",0]
["Максидом, ОБИ","Корпус 1П 10\" х\\в    на 1/2",0]
["Максидом, ОБИ","Гейзер 1П   (х\\в)    на 3/4",0]
["Максидом, ОБИ","Корпус AQUA 10\" х/в   италия   прозр.голубой на 1/2 и 3/4",0]
["Максидом, ОБИ","Корпус TD- 10 для г./в  оранж. (Гейзер 1Г мех.для г\\в)",0]
["Максидом, ОБИ","Корпус для г.в. и х.в. HSG 10 SL  метал.нерж. 3/4",0]
[null,"Корпус  Гейзер непрозрачный/матовый",0]
[null,"Сменные модули к предфильтрам",{"$f":"SUM(C325:C341)","v":0},{"$f":"SUM(D325:D341)","v":0}]
["Максидом, ОБИ","Картридж /ЭФМ-SL/ х.в. от 20 до 10 мкр.",{"$f":"H325*D325","v":0}]
["Максидом, Окей","Картридж /ЭФМ-SL/ х.в. от 10 до 5 мкр.",0]
["Максидом","Картридж /ЭФМ-SL/ х.в. от 5 до 1 мкр.",0]
["Максидом, ОБИ","Картридж /ЭФМ-SL/ г.в.от 5 до 1 мкр.",0]
["Максидом, ОБИ","Картридж /ЭФМ-SL/ г.в.от 10до 5 мкр.",0]
["Максидом","Картридж /PYP/S 5-10SL/ для г.в. 5 мкр.   Италия",0]
["Максидом","Картридж /PYP/W 5/ полиэстер  Италия",0]
["Максидом","Картридж  для х/в и г/в. СНК-50  (метал.сетка)",0]
["Максидом","Картридж БФ (не для питьев.воды) 10 дюйм.",0]
["Максидом, Окей, ОБИ","Картридж нитевой универс с ионами серебра",0]
[null,"ЭФМ 5 мкрн. х\\в до 20 тонн (переменная порист-ть)",0]
[null,"ЭФМ 5 мкрн.  До 50 тонн",0]
[null,"Картридж /PYP/W 5- 5 мкр.х/в   Италия 60 тонн",0]
[null,"Картридж /PYP/5-. 30 тонн",0]
[null,"Картридж /ЭФМ-SL/ х.в.  5 мкр до 50 тонн",0]
[]
["Максидом, Окей","Картридж   РР 5 мкр вспененный   до 20тонн",{"$f":"H341*D341","v":0}]
[null,"системы обратного осмоса",{"$f":"SUM(C343:C351)","v":0},{"$f":"I342*E342","v":0}]
[null,"Гейзер Осмо Престиж 2",{"$f":"H343*D343","v":0}]
[null,"Гейзер Престиж 6                                           ",0]
["Максидом, Окей","Гейзер Престиж М (Минерализатор)",0]
["Максидом, Окей","Гейзер Престиж П (с помпой)",0]
["Максидом, Окей","Гейзер-WS AquaChief  (колонна)",0]
["Окей","Минерализатор /RO/   6000л.",0]
["Максидом, Окей","Мембрана обратноосмат.  200л./сут",0]
["Максидом","таблетка минерализ",0]
["Окей","Постфильтр угольн.",0]
[null,null,0]
["Окей","Фильтроэлемент к фильтру /Угольная вставка У/",0]
["Окей","Фильтроэлемент к фильтру /Таблетка В/",0]
["Окей","Фильтроэлемент к фильтру /Угольная вставка У(В)",0]
["Окей","Фильтроэлемент к фильтру /Смягчающая вставка \"С\"/",0]
[null,"Мелочи",{"$f":"SUM(C358:C365)","v":0},{"$f":"SUM(D358:D365)","v":0}]
["Окей","Адаптер (для фильтрпатрона)",{"$f":"H358*D358","v":0}]
["Окей","Ключ для корпуса Aqua",0]
["Окей","Скоба одинарн.металл.",0]
[null,"вставка умягчающая \"с\"",0]
[null,"вставка УВ",0]
[null,"вставка угольная ",0]
["Окей","Вставка кварцевая для магистр.фильтр.г/в",0]
["Окей","Сигнализатор /Аквадозор/",0]
[null,"Краны",{"$f":"SUM(C367:C383)","v":40000},{"$f":"SUM(D367:D383)","v":1526}]
["Окей","Кран  исп.3 хром,металл",{"$f":"H367*D367","v":40000},500,null,null,null,80]
["Окей","Кран  исп.6  керамич.",0]
[null,"Кран  American Style",0]
[null,"Кран  обычный Ретро",0]
[null,null,0]
["Окей","Фильтр дисковой ,промывной    130 мкр.",0]
[null,"Дачник   Ж",0]
[null,"Дачник",0]
[null,"засыпка для Гейзер-Дачник Ж",0]
[null,"засыпка для Гейзер-Дачник",0]
[null,"Фильтр Гейзер Евро хром=(топаз)",0,970]
[null,"смен. модуль к гейзер евро",0]
[null,null,0]
[null,"аквадозор  (сигнализатор утечки воды)",0]
["Окей","JG 3 метра",0,56]
["Окей","Соль таблет-ная  25 кг.",0]
["Окей","переходник с 1/2\" на JG 2 штуки ",0]
[null,"ОБОРОТ ГЕЙЗЕР",{"$f":"SUM(C366+C357+C342+C324+C314+C300+C290+C282+C271+C249+C242+C236+C226)","v":96860},{"$f":"SUM(D366+D357+D342+D324+D314+D300+D290+D282+D271+D249+D242+D236+D226)","v":9052}]
[]
[null,"Барьер"]
[null,"Кувшины",{"$f":"SUM(C388:C396)","v":7334},{"$f":"SUM(D388:D396)","v":940}]
["ОБИ, Метро","Эко (изумруд,аквамарин, янтарь) 2,6л.",{"$f":"H388*D388","v":1530},153,null,null,null,10]
["Лента, Карусель, ОБИ","Гранд NEO 2008 г ",1683,187,null,null,null,9]
[null,"Гранд гранат,оранж   3,6",2320,290,null,null,null,8]
[null,"Экстра",1309,187,null,null,null,7]
[null,"Премия",0]
["ОБИ","Норма  белый,индиго    3л.",0]
["Лента, ОБИ","Компакт с мех.инд 2,7",0]
[null,"Классик",492,123,null,null,null,4]
[null,"Гранд Мемо с электр.индик малахит,индиго  3,6",0]
[null,"Сменные кассеты",{"$f":"SUM(C398:C406)","v":0},{"$f":"SUM(D398:D406)","v":0}]
["Лента, ОБИ","Барьер-4 (стандарт)до 350 л",{"$f":"H398*D398","v":0}]
["Лента, ОБИ","Барьер-4 (3 шт.)",0]
[null,"Барьер-5 (фтор +) 1 мес 350л.",0]
["Метро","Барьер-6 (жесткость)-2 шт.",0]
["ОБИ","Барьер-6 (жесткость) 3 мес",0]
["ОБИ","Барьер-7 (железо)    3 мес до 350 л.",0]
["Метро","барьер- классик (2шт)",0]
["Карусель","барьер (4 шт.)",0]
[null,"барьер- классик",0]
[null,"Проточные фильтры",{"$f":"SUM(C408:C411)","v":0},{"$f":"SUM(D408:D411)","v":0}]
["ОБИ","Барьер Аквалиния=Соло",{"$f":"H408*D408","v":0}]
[null,"Профи «Standart»= Трио",{"$f":"H409*D409","v":0}]
[null,"Профи Hard",{"$f":"H410*D410","v":0}]
[null,"Пррофи  Ferrum",{"$f":"H411*D411","v":0}]
[null,"Кассеты для проточных фильтров",{"$f":"SUM(C413:C426)","v":0},{"$f":"SUM(D413:D426)","v":0}]
["ОБИ","Кассета Аквалиния",{"$f":"H413*D413","v":0}]
[null,"БАРЬЕР ПРОФИ Механика  10мкр",0]
[null,"БАРЬЕР ПРОФИ Механика  5мкр",0]
[null,"БАРЬЕР ПРОФИ Карбон-блок  10 т.литр",0]
[null,"БАРЬЕР ПРОФИ Посткарбон 10т.л",0]
[null,"Барьер Профи Смягчение",0]
[null,"Барьер Профи ВВ механ 20 д.",0]
[null,"БАРЬЕР ПРОФИ ВВ Карбон-блок",0]
[null,"БАРЬЕР ПРОФИ ВВ Посткарбон",0]
[null,"Барьер Профи Ферростоп",0]
[null,null,0]
[null,null,0]
[null,"Фильтр для душа Комфорт Барьер",0]
[null,"Кассета для фильтра Барьер-Комфорт",0]
[null,"ОБОРОТ БАРЬЕР",{"$f":"SUM(C412+C407+C397+C387)","v":7334}]
[null,"Brita",{"$f":"H428*D428","v":0}]
[null,"Кувшины",{"$f":"SUM(C430:C444)","v":213500},{"$f":"SUM(D430:D444)","v":4740}]
[null,"Elemaris XL с Меmо индикат.черн.",{"$f":"H430*D430","v":30000},2000,null,null,null,15]
[null,"Elemaris COOL с Меmо индикатор  2,4",5000,500,null,null,null,10]
["Метро","Elemaris XL COOL с Меmо индикатор  2,4",14750,590,null,null,null,25]
[null,"Elemaris XL с Меmо индикат.хром",0]
[null,"Elemaris XL maxtra с memo индикатр объем 2,4черн",0]
[null,"Elemaris 6- maxtra с memo индикатр объем 2,4 бел   ",0]
[null,"Elemaris X- maxtra с memo индикатр объем 3,5",12000,400,null,null,null,30]
["Окей, Метро","Elemaris XL maxtra черн  3,5 с memo индикат",0]
["Карусель, Метро","Brita Aluna XL   бел 3,5 литр",0]
["Окей","Brita Aluna XL maxtra     3,1литр",0]
["Окей, Ашан, Карусель","Brita Aluna XL new    2,4 maxtra    с прозрачн ручкой",10000,100,null,null,null,100]
["Окей, Ашан, Метро"," Brita Marella XLГрафит    3,5 л.",0]
["Окей, Ашан"," Brita Marella XL красн..   3,5",72000,900,null,null,null,80]
["Карусель"," Brita Marella -COOL        2,4 л.",0]
["Окей, Карусель"," Brita Marella XL бел.    3,5",69750,250,null,null,null,279]
[null,"Сменные картриджи к кувшинам",{"$f":"SUM(C446:C450)","v":29761},{"$f":"SUM(D446:D450)","v":1080}]
["Окей, Ашан, Карусель","Картридж к фильтру воды Brita Classic ",{"$f":"H446*D446","v":11250},250,null,null,null,45]
["Окей, Ашан, Карусель","Картридж к фильтру воды Brita Maxtra",{"$f":"H447*D447","v":1800},150,null,null,null,12]
["Метро","Картридж к фильтру воды Brita Maxtra (2 шт.)",{"$f":"H448*D448","v":10816},169,null,null,null,64]
[null,"Картридж к фильтру воды Brita Classic (2 шт.)",{"$f":"H449*D449","v":3540},354,null,null,null,10]
["Метро","Картридж к фильтру воды Brita Classic (3 шт.)",{"$f":"H450*D450","v":2355},157,null,null,null,15]
[null,"ОБОРОТ БРИТА",{"$f":"SUM(C445+C429)","v":243261},{"$f":"SUM(D445+D429)","v":5820},{"$f":"SUM(E9:E219)","v":229}]
[null,null,null,null,{"$f":"SUM(E10:E220)","v":0}]
[null,"ОБОРОТ ВЕСЬ",{"$f":"SUM(C451+C427+C384+C223)","v":434205},{"$f":"SUM(D451+D427+D384+D223)","v":16957},{"$f":"SUM(E9:E451)","v":458}]
[null,null,null,null,{"$f":"SUM(E12:E222)","v":0}]
[]
["Соотношение с конкурентом (% от оборота):"]
[]
["Аквафор",null,{"$f":"C223/C453","v":0.19979042157506247}," "]
["Гейзер",null,{"$f":"C384/C453","v":0.22307435427966052}]
["Брита",null,{"$f":"C451/C453","v":0.56024458493108098}]
["Барьер",null,{"$f":"C427/C453","v":1.6890639214196059E-2}]